bitfinex-derivatives/quotes_SOLF0:USTF0_20240815
["timestamp","ask_amount","ask_price","bid_price","bid_amount"]
[1723691427144,3.4515,144.86,144.85,18.89823298]
[1723691430550,3.4515,144.86,144.84,10.65466504]
[1723691430750,3.4515,144.86,144.85,18.89594785]
[1723691431052,3.4515,144.86,144.84,14.10646504]
[1723691431249,3.4515,144.86,144.85,18.89594785]
[1723691434452,3.4515,144.86,144.85,18.90955239]
[1723691435046,7.03488214,144.87,144.85,18.90955239]
[1723691435250,7.03488214,144.87,144.86,18.90955239]
[1723691435647,7.03488214,144.87,144.84,14.10646504]
[1723691435857,7.03488214,144.87,144.85,18.90977736]
[1723691436052,7.03488214,144.87,144.86,18.90977736]
[1723691437955,7.03488214,144.87,144.84,14.10646504]
[1723691438259,7.03488214,144.87,144.85,35.69728507]
[1723691438462,7.03488214,144.87,144.86,18.90970188]
[1723691441063,3.50316327,144.87,144.86,18.90970188]
[1723691441759,3.50316327,144.87,144.86,18.91865095]
[1723691441970,3.50773053,144.95,144.86,76.44865095]
[1723691442162,6.907,144.97,144.87,35.70346643]
[1723691442368,3.4491,144.96,144.93,10.61]
[1723691442557,10.39201588,144.97,144.93,10.61]
[1723691443162,10.39201588,144.97,144.86,46.92]
[1723691443368,1.32725785,144.96,144.94,0.05322949]
[1723691443562,3.4492,144.95,144.94,0.05322949]
[1723691443763,1.28,144.96,144.91,10.61]
[1723691444069,3.4495,144.94,144.93,0.04880286]
[1723691446157,10.61,144.94,144.83,29.32584871]
[1723691446364,10.61,144.89,144.84,16.793881]
[1723691446563,10.61,144.89,144.8,24.85261897]
[1723691446564,3.4516,144.86,144.85,16.793881]
[1723691446765,14.0616,144.86,144.85,2.690781]
[1723691446972,10.61,144.86,144.78,37.33189452]
[1723691447266,3.53672004,144.89,144.82,10.61]
[1723691447468,6.907,144.9,144.81,0.04648483]
[1723691447469,0.04545208,144.83,144.81,0.04648483]
[1723691447657,4.48,144.87,144.82,22.38504056]
[1723691447972,7.9311,144.87,144.84,10.61]
[1723691448170,0.05006829,144.86,144.85,18.93294056]
[1723691448767,0.05006829,144.86,144.85,29.54294056]
[1723691448967,0.05006829,144.86,144.85,30.80424056]
[1723691449167,0.05006829,144.86,144.85,34.25584056]
[1723691449462,4.48,144.92,144.85,30.80424056]
[1723691449664,4.48,144.92,144.89,10.61]
[1723691450066,3.4502,144.91,144.89,10.61]
[1723691450668,3.5011765,144.91,144.89,10.65656014]
[1723691451673,0.0509765,144.91,144.89,10.65656014]
[1723691452376,3.5011765,144.91,144.89,0.04656014]
[1723691453469,3.4504,144.9,144.89,0.04656014]
[1723691453773,14.0604,144.9,144.89,0.04656014]
[1723691457371,3.4504,144.9,144.89,0.04656014]
[1723691457764,0.0509765,144.91,144.89,10.65656014]
[1723691459064,0.0509765,144.91,144.89,14.10706014]
[1723691459772,0.0509765,144.91,144.89,0.04656014]
[1723691461177,3.5011765,144.91,144.89,0.04656014]
[1723691461584,0.0509765,144.91,144.89,0.04656014]
[1723691461874,33.437,144.96,144.89,0.04656014]
[1723691461875,6.907,145.03,144.9,26.53]
[1723691462173,6.907,145.03,144.93,26.53]
[1723691462174,3.4487,144.97,144.93,26.53]
[1723691463077,0.0438409,144.96,144.94,0.04439213]
[1723691464475,3.4492,144.95,144.94,0.04439213]
[1723691464877,7.9292,144.95,144.94,0.04439213]
[1723691466675,0.0438409,144.96,144.94,26.57439213]
[1723691466879,3.51221086,145.0,144.94,26.57439213]
[1723691467073,26.53,145.04,144.95,1.2246]
[1723691467074,4.48,145.02,144.95,1.2246]
[1723691468170,0.05283964,145.0,144.97,0.05107956]
[1723691468777,0.05283964,145.0,144.97,3.49967956]
[1723691469479,0.05283964,145.0,144.97,0.05107956]
[1723691469480,3.50083964,145.0,144.97,0.05107956]
[1723691470477,3.50083964,145.0,144.97,3.49977956]
[1723691470872,3.50083964,145.0,144.97,0.05107956]
[1723691471681,0.05283964,145.0,144.98,3.4483]
[1723691480586,3.50083964,145.0,144.98,3.4483]
[1723691480991,0.05283964,145.0,144.97,0.05107956]
[1723691481686,3.50083964,145.0,144.97,3.49967956]
[1723691482288,4.48,145.02,144.97,0.05107956]
[1723691482491,6.8897,145.14,145.0,26.53]
[1723691482492,30.99,145.1,145.0,26.53]
[1723691482699,0.37000562,145.09,145.0,26.53]
[1723691483092,0.37000562,145.09,145.01,3.4478]
[1723691483698,3.447,145.05,145.04,0.04492795]
[1723691485388,3.49051874,145.06,145.04,0.04492795]
[1723691485593,0.04371874,145.06,145.04,0.04492795]
[1723691486099,3.4468,145.05,145.04,0.04492795]
[1723691490802,10.3538,145.05,145.04,0.04492795]
[1723691496001,10.72398027,145.05,145.04,0.04492795]
[1723691496899,33.80718027,145.05,144.98,1.2151]
[1723691497102,33.437,145.05,144.98,1.2151]
[1723691497904,0.04396828,145.03,145.0,0.04943543]
[1723691498103,4.46,145.02,145.0,0.04943543]
[1723691498309,3.448,145.01,145.0,0.04943543]
[1723691504310,4.46,145.02,145.0,0.04943543]
[1723691505815,3.4478,145.01,145.0,0.04943543]
[1723691506722,3.5128282,145.03,145.0,0.04943543]
[1723691506922,11.9174,145.09,145.02,10.6]
[1723691507116,0.37004542,145.08,145.02,10.6]
[1723691507724,3.4472,145.04,145.02,10.6]
[1723691508126,3.4472,145.04,145.02,10.64578248]
[1723691509631,3.4472,145.04,145.02,0.04578248]
[1723691511226,7.907,145.05,145.02,0.04578248]
[1723691511430,4.46,145.05,145.02,0.04578248]
[1723691512119,26.48,145.03,144.83,6.9041]
[1723691512325,4.46,145.05,144.86,26.48]
[1723691512326,26.48,144.96,144.86,26.48]
[1723691512524,3.4503,144.91,144.86,29.9313]
[1723691512828,4.46,144.9,144.83,26.48]
[1723691513225,11.44246772,144.9,144.85,3.4515]
[1723691513425,4.46,144.9,144.85,29.9315]
[1723691513621,0.05111392,144.88,144.85,29.97567106]
[1723691513825,0.05111392,144.88,144.86,3.4513]
[1723691514228,0.05111392,144.88,144.85,26.52417106]
[1723691514425,0.05111392,144.88,144.86,3.4512]
[1723691515326,0.05111392,144.88,144.87,3.4511]
[1723691515525,4.46,144.91,144.87,26.48]
[1723691516331,4.46,144.91,144.88,3.4508]
[1723691516823,4.5047593,144.91,144.88,3.4508]
[1723691517028,4.5047593,144.91,144.88,3.49998683]
[1723691519734,0.0447593,144.91,144.88,3.49998683]
[1723691523137,0.0447593,144.91,144.89,3.4506]
[1723691523736,0.0447593,144.91,144.88,3.49998683]
[1723691524842,3.4949593,144.91,144.88,0.04918683]
[1723691525338,4.46,144.98,144.9,26.48]
[1723691525641,4.46,144.98,144.85,26.48]
[1723691525642,3.51877415,144.97,144.92,26.48]
[1723691526542,0.04418388,144.96,144.93,0.04786423]
[1723691526743,3.4492,144.95,144.93,0.04786423]
[1723691527248,3.49328388,144.96,144.93,0.04786423]
[1723691527443,0.04418388,144.96,144.93,0.04786423]
[1723691529247,3.49328388,144.96,144.93,0.04786423]
[1723691529438,6.907,145.08,144.95,26.48]
[1723691529745,1.302,145.05,144.95,26.48]
[1723691530040,3.4475,145.02,144.98,3.4485]
[1723691530542,3.4475,145.02,144.99,0.04933621]
[1723691530543,0.04602741,145.01,144.99,0.04933621]
[1723691532744,3.49382741,145.01,144.99,0.04933621]
[1723691533342,0.04602741,145.01,144.99,0.04933621]
[1723691534140,6.888,145.17,145.0,26.48]
[1723691534345,1.2447,145.1,145.0,26.48]
[1723691534541,0.36990882,145.09,145.0,26.48]
[1723691534849,26.48,145.15,145.0,26.48]
[1723691534850,4.46,145.15,145.07,26.48]
[1723691535144,3.4451,145.13,145.08,3.4461]
[1723691535343,4.46,145.15,145.1,0.0460267]
[1723691535344,0.04689945,145.12,145.1,0.0460267]
[1723691535543,0.04689945,145.12,144.98,3.52199875]
[1723691535749,3.4459,145.09,145.04,3.4469]
[1723691536849,0.04500204,145.08,145.05,0.04467862]
[1723691538248,0.04500204,145.08,145.05,3.49147862]
[1723691544155,0.04500204,145.08,145.05,0.04467862]
[1723691544748,0.04500204,145.08,145.07,3.4463]
[1723691545251,3.42998,145.15,145.12,3.4451]
[1723691545453,4.46,145.22,145.11,26.48]
[1723691545454,26.48,145.2,145.11,26.48]
[1723691545752,3.8119,145.21,145.07,26.48]
[1723691545753,0.36925923,145.19,145.13,26.48]
[1723691545943,0.36925923,145.18,145.13,26.48]
[1723691546148,3.8119,145.21,145.13,26.48]
[1723691546349,0.05147594,145.17,145.14,0.05266685]
[1723691546749,0.05147594,145.17,145.15,3.4444]
[1723691547151,0.05147594,145.17,145.14,0.05266685]
[1723691547354,0.05147594,145.17,145.15,3.4444]
[1723691549253,0.05147594,145.17,145.14,3.49726685]
[1723691553750,4.46,145.22,145.14,0.05266685]
[1723691554054,30.2237,145.27,145.17,26.48]
[1723691554459,3.4425,145.24,145.19,3.4433]
[1723691554753,3.36135611,145.23,145.19,3.4433]
[1723691554965,0.0445269,145.23,145.2,0.04488508]
[1723691555158,6.88224817,145.23,145.2,0.04488508]
[1723691555659,3.43964817,145.23,145.2,3.48808508]
[1723691557062,6.88224817,145.23,145.2,0.04488508]
[1723691558259,3.43964817,145.23,145.2,0.04488508]
[1723691559563,3.4429,145.22,145.2,0.04488508]
[1723691561257,0.0445269,145.23,145.21,26.48]
[1723691561860,0.0445269,145.23,145.22,3.4428]
[1723691568962,5.7588,145.28,145.25,3.442]
[1723691569270,5.7588,145.28,145.22,26.48]
[1723691569561,12.61638068,145.28,145.22,26.48]
[1723691569763,12.61638068,145.28,145.24,3.4421]
[1723691570163,12.61638068,145.28,145.25,0.05284622]
[1723691570364,3.4416,145.27,145.25,0.05284622]
[1723691571860,9.17478068,145.28,145.25,0.05284622]
[1723691572261,3.4416,145.27,145.25,0.05284622]
[1723691572468,9.17478068,145.28,145.25,0.05284622]
[1723691573067,3.4416,145.27,145.25,0.05284622]
[1723691573269,9.17478068,145.28,145.25,0.05284622]
[1723691573665,3.4416,145.27,145.25,0.05284622]
[1723691573867,9.17478068,145.28,145.25,0.05284622]
[1723691574368,3.4418,145.27,145.25,0.05284622]
[1723691580166,9.17478068,145.28,145.25,0.05284622]
[1723691580167,3.4418,145.26,145.25,0.05284622]
[1723691584776,3.4424,145.24,145.22,10.57]
[1723691584973,10.57,145.27,145.17,4.5]
[1723691585274,10.57,145.26,145.19,10.57]
[1723691585670,10.57,145.24,145.11,7.2667]
[1723691585874,3.4432,145.21,145.18,10.57]
[1723691586072,0.04603392,145.19,145.16,0.0487846]
[1723691586377,0.04603392,145.19,145.17,10.57]
[1723691587074,3.48953392,145.19,145.17,10.57]
[1723691587474,3.48953392,145.19,145.16,0.0487846]
[1723691587674,3.4437,145.18,145.17,10.57]
[1723691587977,0.04603392,145.19,145.17,10.57]
[1723691589771,3.48963392,145.19,145.17,10.57]
[1723691593076,3.4439,145.18,145.16,10.6187846]
[1723691593278,3.4439,145.18,145.16,0.0487846]
[1723691595879,4.48603392,145.19,145.16,0.0487846]
[1723691595880,3.444,145.17,145.16,0.0487846]
[1723691596080,10.57,145.18,145.07,5.7471]
[1723691596280,3.4449,145.13,145.1,3.4456]
[1723691596784,4.44,145.15,145.1,3.4456]
[1723691597082,3.445,145.13,145.1,3.4456]
[1723691597281,3.445,145.13,145.11,0.04812572]
[1723691597582,3.4452,145.12,145.11,0.04812572]
[1723691608885,6.93961131,145.12,145.11,0.04812572]
[1723691609393,3.4452,145.12,145.11,0.04812572]
[1723691611385,17.38726038,145.12,145.11,0.04812572]
[1723691611590,10.57,145.11,145.01,7.84688035]
[1723691611794,4.46,145.1,145.04,10.57]
[1723691611991,3.446,145.09,145.05,3.4467]
[1723691612790,0.0521316,145.08,145.06,0.05118056]
[1723691615800,3.4982316,145.08,145.06,0.05118056]
[1723691617204,0.0521316,145.08,145.07,3.4463]
[1723691620299,0.0521316,145.08,145.06,0.05118056]
[1723691620798,3.4984316,145.08,145.06,0.05118056]
[1723691625700,3.4463,145.07,145.06,0.05118056]
[1723691628110,7.8863,145.07,145.06,0.05118056]
[1723691633215,4.7063316,145.08,145.06,0.05118056]
[1723691633512,9.1663316,145.08,145.06,0.05118056]
[1723691634106,0.0521316,145.08,145.06,10.62118056]
[1723691634612,0.0521316,145.08,145.07,3.4463]
[1723691637913,0.0521316,145.08,145.06,14.06768056]
[1723691638112,0.0521316,145.08,145.06,0.05118056]
[1723691638309,0.0521316,145.08,145.07,14.0163]
[1723691638906,0.0521316,145.08,145.07,3.4463]
[1723691639716,0.0521316,145.08,145.06,14.06768056]
[1723691644828,0.0521316,145.08,145.07,3.4463]
[1723691645725,0.0521316,145.08,145.06,14.06768056]
[1723691646218,0.0521316,145.08,145.06,3.49768056]
[1723691646425,3.4982316,145.08,145.06,0.05118056]
[1723691646626,0.0521316,145.08,145.06,0.05118056]
[1723691647626,3.4463,145.07,145.06,0.05118056]
[1723691648724,3.4983316,145.08,145.06,0.05118056]
[1723691649622,3.4463,145.07,145.06,0.05118056]
[1723691649818,14.0163,145.07,145.06,0.05118056]
[1723691650721,3.4463,145.07,145.06,0.05118056]
[1723691650918,14.0163,145.07,145.06,0.05118056]
[1723691652019,14.0163,145.07,144.98,2.5261]
[1723691652020,10.57,145.07,144.99,10.57]
[1723691652220,4.4921316,145.08,144.98,1.2901]
[1723691652221,10.57,145.04,144.98,1.2901]
[1723691652421,3.4473,145.03,144.98,1.2901]
[1723691652620,3.4473,145.03,145.0,3.448]
[1723691653123,0.04488602,145.03,145.0,3.49386238]
[1723691654215,0.04488602,145.03,145.01,3.4478]
[1723691654620,0.04488602,145.03,145.0,0.04586238]
[1723691655027,3.49218602,145.03,145.0,3.49376238]
[1723691665837,0.04488602,145.03,145.0,10.61586238]
[1723691666334,0.04488602,145.03,145.02,3.4475]
[1723691672833,0.04488602,145.03,145.02,14.0175]
[1723691673237,3.4462,145.08,145.05,3.4467]
[1723691674439,3.49909047,145.08,145.05,3.49947441]
[1723691676639,0.05289047,145.08,145.05,3.49947441]
[1723691677240,0.05289047,145.08,145.06,3.4466]
[1723691678240,3.49899047,145.08,145.05,3.49957441]
[1723691679940,3.49899047,145.08,145.05,0.05277441]
[1723691679941,0.05289047,145.08,145.05,0.05277441]
[1723691680142,10.57,145.06,145.05,0.05277441]
[1723691680338,14.0166,145.06,145.05,0.05277441]
[1723691680540,18.4566,145.06,145.05,0.05277441]
[1723691683041,3.4471,145.04,145.01,3.4476]
[1723691684237,3.49130659,145.04,145.01,3.49542188]
[1723691686550,3.4473,145.03,145.01,0.04782188]
[1723691689149,3.4473,145.03,145.01,3.49552188]
[1723691689651,3.4473,145.03,145.01,0.04782188]
[1723691690350,0.04420659,145.04,145.01,3.49562188]
[1723691690351,3.49140659,145.04,145.01,3.49562188]
[1723691691452,3.49140659,145.04,145.01,10.61782188]
[1723691691650,0.04420659,145.04,145.01,10.61782188]
[1723691692053,0.04420659,145.04,145.02,3.4474]
[1723691692748,0.04420659,145.04,145.03,14.0173]
[1723691693644,0.04420659,145.04,145.03,32.91150488]
[1723691694048,0.04420659,145.04,145.03,14.0173]
[1723691694244,0.04420659,145.04,145.03,32.90819932]
[1723691696047,0.04420659,145.04,145.03,32.90877205]
[1723691696352,0.04420659,145.04,145.03,22.33877205]
[1723691697258,0.04420659,145.04,145.03,22.33693828]
[1723691700559,0.04420659,145.04,145.03,3.4473]
[1723691700748,0.04420659,145.04,145.03,22.33581013]
[1723691703256,0.04420659,145.04,145.03,18.88851013]
[1723691703560,0.04420659,145.04,145.01,0.04782188]
[1723691703746,0.04420659,145.04,145.01,10.61782188]
[1723691703947,0.04420659,145.04,145.02,3.4473]
[1723691704555,3.49130659,145.04,145.01,14.06552188]
[1723691704753,0.04420659,145.04,145.01,14.06552188]
[1723691704953,0.04420659,145.04,145.01,10.61782188]
[1723691705153,3.4473,145.03,145.01,0.04782188]
[1723691705561,10.61420659,145.04,145.01,0.04782188]
[1723691705754,14.0175,145.02,145.01,0.04782188]
[1723691706052,14.0175,145.02,144.94,10.57]
[1723691706053,18.37815611,145.02,144.94,10.57]
[1723691706257,3.4485,144.99,144.95,22.36411879]
[1723691706454,3.4485,144.99,144.95,3.4491]
[1723691706656,10.57,145.0,144.95,3.4491]
[1723691707056,3.4485,144.98,144.95,3.4491]
[1723691707455,3.4485,144.98,144.96,0.05256114]
[1723691707663,3.4487,144.97,144.96,0.05256114]
[1723691708357,4.6999,144.97,144.96,0.05256114]
[1723691708754,3.4495,144.94,144.9,3.4503]
[1723691708957,3.4495,144.94,144.91,18.93360627]
[1723691709156,3.4495,144.94,144.9,3.4503]
[1723691709455,10.57,144.95,144.87,3.41729349]
[1723691709660,10.57,144.95,144.88,29.50272556]
[1723691709858,3.4494,144.95,144.91,3.45]
[1723691710063,0.04751246,144.93,144.91,3.45]
[1723691712367,3.49721246,144.93,144.9,3.50287998]
[1723691712558,0.04751246,144.93,144.9,10.62257998]
[1723691713651,0.04751246,144.93,144.91,3.45]
[1723691714259,0.04751246,144.93,144.92,3.4499]
[1723691715464,0.04751246,144.93,144.91,3.4501]
[1723691719162,0.04751246,144.93,144.9,10.62257998]
[1723691719760,0.04751246,144.93,144.91,3.45]
[1723691721160,0.04751246,144.93,144.92,3.4499]
[1723691722855,0.04751246,144.93,144.91,3.4501]
[1723691723060,10.61751246,144.93,144.9,0.05257998]
[1723691723462,10.57,144.91,144.8,1.7358]
[1723691723656,10.57,144.91,144.84,10.57]
[1723691723964,3.4508,144.89,144.85,3.4514]
[1723691724864,3.4508,144.89,144.86,3.4512]
[1723691725063,0.04481197,144.88,144.86,3.49497272]
[1723691728670,0.04481197,144.88,144.87,3.4511]
[1723691729569,0.04481197,144.88,144.86,3.49507272]
[1723691731163,0.04481197,144.88,144.87,3.4511]
[1723691735676,0.04481197,144.88,144.86,14.06487272]
[1723691743283,0.04481197,144.88,144.86,10.61377272]
[1723691743786,0.04481197,144.88,144.87,14.0211]
[1723691743980,3.4498,144.93,144.87,10.57]
[1723691744184,4.44,144.94,144.9,10.57]
[1723691744484,7.8896,144.94,144.91,3.45]
[1723691744685,4.44,144.94,144.9,10.57]
[1723691745377,0.04873259,144.93,144.91,3.49557097]
[1723691746684,0.04873259,144.93,144.92,3.4499]
[1723691747475,0.04873259,144.93,144.92,14.0199]
[1723691747681,0.04873259,144.93,144.91,3.49557097]
[1723691749887,0.04873259,144.93,144.91,0.04557097]
[1723691750285,3.4499,144.92,144.91,0.04557097]
[1723691750588,0.04873259,144.93,144.91,0.04557097]
[1723691750981,3.4499,144.92,144.91,0.04557097]
[1723691755489,14.0199,144.92,144.91,0.04557097]
[1723691762408,3.4499,144.92,144.91,0.04557097]
[1723691762903,8.39863259,144.93,144.91,0.04557097]
[1723691763096,18.96863259,144.93,144.91,0.04557097]
[1723691763298,3.4499,144.92,144.91,0.04557097]
[1723691763498,14.0199,144.92,144.91,0.04557097]
[1723691768807,10.57,144.92,144.8,4.44]
[1723691769111,15.29663259,144.93,144.82,10.57]
[1723691769112,10.57,144.88,144.82,10.57]
[1723691769307,14.021,144.88,144.82,10.57]
[1723691770011,0.04615399,144.86,144.84,3.50053603]
[1723691773005,0.04615399,144.86,144.85,3.4516]
[1723691774106,0.04615399,144.86,144.84,3.50063603]
[1723691775300,0.04615399,144.86,144.85,3.4516]
[1723691775609,0.04615399,144.86,144.85,14.0216]
[1723691776308,0.04615399,144.86,144.85,32.92744322]
[1723691777507,3.9099,144.93,144.88,3.4508]
[1723691777710,4.44,144.92,144.88,14.0208]
[1723691778708,4.44,144.92,144.89,0.05189592]
[1723691778709,3.50074845,144.91,144.89,0.05189592]
[1723691779908,3.4504,144.9,144.89,0.05189592]
[1723691789118,0.05044845,144.91,144.89,0.05189592]
[1723691790028,0.05044845,144.91,144.89,3.50239592]
[1723691790728,0.05044845,144.91,144.9,22.37354528]
[1723691790923,0.05044845,144.91,144.9,18.92314528]
[1723691792326,0.05044845,144.91,144.9,22.36905998]
[1723691792729,0.05044845,144.91,144.9,3.4504]
[1723691793024,0.05044845,144.91,144.9,22.36815602]
[1723691794030,0.05044845,144.91,144.9,18.91775602]
[1723691794527,0.05044845,144.91,144.9,22.36815602]
[1723691795833,1.2595,144.97,144.94,3.4493]
[1723691796626,4.7083,144.97,144.94,3.4493]
[1723691797026,0.04793713,144.97,144.94,10.61485078]
[1723691797333,0.04793713,144.97,144.95,29.47063874]
[1723691797628,0.04793713,144.97,144.96,3.4489]
[1723691798224,0.04793713,144.97,144.96,22.34494364]
[1723691799030,1.2709,145.02,144.96,22.34494364]
[1723691799031,4.44,145.04,144.96,18.89604364]
[1723691799231,15.01,145.04,144.98,10.57]
[1723691799425,10.57,145.04,144.98,10.57]
[1723691799625,10.57,145.04,144.99,3.4481]
[1723691800327,0.04697229,145.03,145.0,0.04565252]
[1723691804633,0.04697229,145.03,145.01,3.4476]
[1723691804942,0.04697229,145.03,145.0,4.46565252]
[1723691805249,0.04697229,145.03,145.02,14.0175]
[1723691805537,0.04697229,145.03,145.02,3.4475]
[1723691809736,14.0162,145.08,145.04,3.4469]
[1723691810239,3.4459,145.09,145.01,10.57]
[1723691810439,3.4459,145.09,145.03,10.57]
[1723691810440,14.0159,145.09,145.03,10.57]
[1723691811141,0.04891188,145.07,145.05,0.0507063]
[1723691811342,0.04891188,145.07,145.05,4.4707063]
[1723691811542,0.04891188,145.07,145.06,3.4466]
[1723691813146,4.42,145.16,145.06,3.4466]
[1723691813339,10.57,145.12,145.09,3.4457]
[1723691814042,1.2994,145.15,144.98,3.36714393]
[1723691814232,10.57,145.05,144.99,5.6342]
[1723691814435,10.57,145.03,145.01,3.4478]
[1723691814636,3.38779731,145.08,145.01,3.49449908]
[1723691814836,0.05275836,145.03,145.01,0.04669908]
[1723691815144,10.57,145.04,145.01,0.04669908]
[1723691815343,0.05086136,145.03,145.01,0.04669908]
[1723691816544,0.05086136,145.03,145.01,3.49429908]
[1723691816739,0.05086136,145.03,145.01,0.04669908]
[1723691816946,10.57,145.02,145.01,0.04669908]
[1723691817149,0.05086136,145.03,145.01,0.04669908]
[1723691817448,10.57,145.02,145.01,0.04669908]
[1723691818446,3.4475,145.02,145.01,0.04669908]
[1723691818745,14.0175,145.02,145.01,0.04669908]
[1723691819045,0.05086136,145.03,145.01,0.04669908]
[1723691820138,10.57,145.02,145.01,0.04669908]
[1723691820645,3.49826136,145.03,145.01,0.04669908]
[1723691823239,0.05086136,145.03,145.01,0.04669908]
[1723691825548,3.49826136,145.03,145.01,0.04669908]
[1723691826547,0.05086136,145.03,145.01,0.04669908]
[1723691827453,3.49816136,145.03,145.01,0.04669908]
[1723691827648,0.05086136,145.03,145.01,0.04669908]
[1723691828645,0.05086136,145.03,145.01,10.61669908]
[1723691829548,0.05086136,145.03,145.01,0.04669908]
[1723691831851,3.4475,145.02,145.01,0.04669908]
[1723691833454,4.76426136,145.03,145.01,0.04669908]
[1723691833651,1.31686136,145.03,145.01,0.04669908]
[1723691834954,10.57,145.02,144.96,10.57]
[1723691835157,10.57,145.02,144.95,3.4491]
[1723691836155,3.50013376,145.0,144.97,0.04479256]
[1723691837655,3.4483,144.99,144.97,0.04479256]
[1723691840967,0.05193376,145.0,144.98,10.57]
[1723691841663,0.05193376,145.0,144.98,14.0185]
[1723691842265,0.05193376,145.0,144.98,10.57]
[1723691843866,0.05193376,145.0,144.97,10.61479256]
[1723691843867,3.49993376,145.0,144.97,10.61479256]
[1723691846471,3.4483,144.99,144.97,10.61479256]
[1723691846666,3.4483,144.99,144.97,0.04479256]
[1723691846870,3.4485,144.98,144.97,0.04479256]
[1723691857382,10.57,144.98,144.9,10.57]
[1723691857579,1.2516,144.97,144.9,10.57]
[1723691857777,10.57,144.96,144.9,10.57]
[1723691858482,3.4499,144.93,144.92,0.05219968]
[1723691859780,0.05013553,144.94,144.92,10.62219968]
[1723691859981,0.05013553,144.94,144.93,10.57]
[1723691860180,0.05013553,144.94,144.92,10.62219968]
[1723691861387,3.49963553,144.94,144.92,10.62219968]
[1723691863475,3.4497,144.93,144.92,10.62219968]
[1723691863979,3.4497,144.93,144.92,0.05219968]
[1723691870884,3.49963553,144.94,144.92,0.05219968]
[1723691871189,3.49963553,144.94,144.92,10.62219968]
[1723691872591,3.49963553,144.94,144.92,0.05219968]
[1723691873990,3.4497,144.93,144.92,0.05219968]
[1723691875293,3.4505,144.9,144.84,5.7366]
[1723691875498,10.57,144.91,144.85,10.57]
[1723691875800,4.42,144.9,144.85,10.57]
[1723691875983,5.7083,144.9,144.85,10.57]
[1723691876486,3.4512,144.87,144.85,10.57]
[1723691876686,3.4512,144.87,144.86,0.04746901]
[1723691878291,3.451,144.88,144.86,0.04746901]
[1723691880392,3.4509,144.88,144.86,0.04746901]
[1723691880594,4.47031299,144.89,144.86,0.04746901]
[1723691881488,3.4511,144.88,144.86,0.04746901]
[1723691881694,4.47031299,144.89,144.86,0.04746901]
[1723691881895,3.4509,144.88,144.86,0.04746901]
[1723691882295,4.47031299,144.89,144.86,0.04746901]
[1723691882701,0.05031299,144.89,144.86,0.04746901]
[1723691883798,3.4511,144.87,144.86,0.04746901]
[1723691886001,26.51,144.88,144.8,26.51]
[1723691886299,0.37165115,144.87,144.78,26.51]
[1723691886500,3.4527,144.81,144.78,26.51]
[1723691886696,30.93,144.86,144.77,3.4533]
[1723691886892,1.2775,144.85,144.77,3.4533]
[1723691887097,3.4527,144.81,144.77,3.4533]
[1723691887306,4.42,144.82,144.77,3.4533]
[1723691887704,3.4525,144.81,144.8,0.0482724]
[1723691888598,4.46850227,144.82,144.8,0.0482724]
[1723691889404,3.4525,144.81,144.8,0.0482724]
[1723691898513,7.8725,144.81,144.8,0.0482724]
[1723691899420,0.04850227,144.82,144.81,3.4525]
[1723691899617,0.04850227,144.82,144.81,29.9625]
[1723691899915,1.338,144.88,144.81,26.51]
[1723691900215,1.338,144.88,144.8,30.08158151]
[1723691900216,1.338,144.88,144.82,26.51]
[1723691900715,1.338,144.88,144.81,26.51]
[1723691900908,1.338,144.88,144.84,0.04972682]
[1723691901217,0.04390069,144.86,144.84,0.04972682]
[1723691902718,0.04390069,144.86,144.84,3.50142682]
[1723691903217,0.04390069,144.86,144.84,0.04972682]
[1723691904009,0.04390069,144.86,144.84,3.50152682]
[1723691904209,0.04390069,144.86,144.84,0.04972682]
[1723691904518,0.04390069,144.86,144.84,26.55972682]
[1723691905218,0.04390069,144.86,144.84,30.01142682]
[1723691905416,0.04390069,144.86,144.84,0.04972682]
[1723691906011,0.04390069,144.86,144.84,3.50152682]
[1723691907324,0.04390069,144.86,144.84,0.04972682]
[1723691909724,0.04390069,144.86,144.84,3.50152682]
[1723691909922,0.04390069,144.86,144.84,0.04972682]
[1723691910223,0.04390069,144.86,144.84,26.55972682]